bitfinex/quotes_BTCUSD_20251104
["timestamp","ask_amount","ask_price","bid_price","bid_amount"]
[1762288766045,0.00202551,100620.0,100610.0,0.17687669]
[1762288766307,0.00202551,100620.0,100610.0,0.31234408]
[1762288766541,0.63918215,100620.0,100610.0,0.08955669]
[1762288767202,0.63918215,100620.0,100610.0,0.09055669]
[1762288767404,0.99405979,100620.0,100610.0,0.09055669]
[1762288767850,0.79529215,100620.0,100610.0,0.09055669]
[1762288768051,0.99405979,100620.0,100610.0,0.08955669]
[1762288768247,0.9937965,100620.0,100610.0,0.08955669]
[1762288768463,0.06211222,100620.0,100610.0,0.09155669]
[1762288768630,0.63891886,100620.0,100610.0,0.08955669]
[1762288769047,0.79502886,100620.0,100610.0,0.08955669]
[1762288769459,0.63891886,100620.0,100610.0,0.08955669]
[1762288769809,0.00176222,100620.0,100610.0,0.08955669]
[1762288769934,0.63891886,100620.0,100610.0,0.11355669]
[1762288770141,0.79502886,100620.0,100610.0,0.08955669]
[1762288770447,0.63891886,100620.0,100610.0,0.08955669]
[1762288770653,0.00176222,100620.0,100610.0,0.35166408]
[1762288770873,0.00176222,100620.0,100610.0,0.15287669]
[1762288771081,0.00176222,100620.0,100610.0,0.08955669]
[1762288771082,0.63628513,100620.0,100610.0,0.08955669]
[1762288771289,0.19878739,100610.0,100600.0,0.04604]
[1762288771521,1.00601403,100610.0,100600.0,0.04604]
[1762288771674,1.34601403,100610.0,100600.0,0.04604]
[1762288772095,1.02662664,100610.0,100600.0,0.04604]
[1762288772284,0.34,100610.0,100600.0,0.07004]
[1762288772683,0.04633,100630.0,100610.0,0.19877798]
[1762288772888,0.04967,100640.0,100620.0,0.28832433]
[1762288773103,0.0002,100640.0,100630.0,0.20924788]
[1762288773311,0.0002,100640.0,100630.0,0.23955788]
[1762288773514,0.0002,100640.0,100630.0,0.26355788]
[1762288773716,0.0002,100640.0,100630.0,0.28555788]
[1762288773938,0.0002,100640.0,100630.0,0.39259016]
[1762288774141,0.0002,100640.0,100630.0,0.75659016]
[1762288774342,0.0002,100640.0,100630.0,0.73259016]
[1762288774343,5.02e-06,100640.0,100630.0,0.73259016]
[1762288774536,5.02e-06,100640.0,100630.0,1.3697468]
[1762288774826,5.02e-06,100640.0,100630.0,1.3957468]
[1762288775189,5.02e-06,100640.0,100630.0,0.93500959]
[1762288775395,5.02e-06,100640.0,100630.0,1.57216623]
[1762288775660,5.02e-06,100640.0,100630.0,0.93500959]
[1762288775997,5.02e-06,100640.0,100630.0,0.91100959]
[1762288776287,5.02e-06,100640.0,100630.0,0.93500959]
[1762288776498,5.02e-06,100640.0,100630.0,1.06546409]
[1762288776703,5.02e-06,100640.0,100630.0,0.39568393]
[1762288776928,5.02e-06,100640.0,100630.0,0.28524788]
[1762288777134,5.02e-06,100640.0,100630.0,0.0865]
[1762288777344,0.84196813,100640.0,100630.0,0.052]
[1762288777553,1.04040979,100640.0,100630.0,0.052]
[1762288777755,0.20452502,100640.0,100630.0,0.046]
[1762288777948,0.84168166,100640.0,100620.0,0.08955669]
[1762288778157,0.20452502,100640.0,100630.0,0.002]
[1762288778435,0.84168166,100640.0,100630.0,0.002]
[1762288779145,1.04040979,100640.0,100630.0,0.002]
[1762288779360,0.84168166,100640.0,100630.0,0.024]
[1762288779575,1.04040979,100640.0,100620.0,0.08955669]
[1762288779757,0.63715664,100630.0,100620.0,0.28832433]
[1762288779937,0.10904502,100640.0,100630.0,0.024]
[1762288780145,0.04633502,100640.0,100630.0,0.024]
[1762288780318,0.39732454,100640.0,100620.0,0.08955669]
[1762288780526,0.03519,100630.0,100620.0,0.08955669]
[1762288780727,0.12755,100630.0,100620.0,0.08955669]
[1762288781037,0.96345452,100630.0,100620.0,0.08955669]
[1762288781438,0.96345452,100630.0,100610.0,0.08955669]
[1762288781641,0.63715664,100620.0,100610.0,0.08955669]
[1762288781936,0.98793428,100620.0,100610.0,0.08955669]
[1762288782145,0.78916664,100620.0,100610.0,0.08955669]
[1762288782352,0.78916664,100620.0,100610.0,0.11355669]
[1762288782522,0.78916664,100620.0,100610.0,0.08955669]
[1762288783436,0.98793428,100620.0,100610.0,0.08955669]
[1762288783637,0.98793428,100620.0,100610.0,0.11355669]
[1762288783865,0.78916664,100620.0,100600.0,0.046]
[1762288784101,0.63715664,100620.0,100610.0,0.08955669]
[1762288784319,0.63715664,100620.0,100610.0,0.11355669]
[1762288784534,0.63715664,100620.0,100610.0,0.08955669]
[1762288784771,0.69705664,100620.0,100610.0,0.11355669]
[1762288785011,0.19878739,100610.0,100600.0,0.046]
[1762288785247,1.30349403,100610.0,100600.0,0.046]
[1762288785424,1.30349403,100610.0,100600.0,4e-05]
[1762288785674,0.66633739,100610.0,100600.0,0.02408]
[1762288785825,1.30349403,100610.0,100600.0,8e-05]
[1762288786580,0.46755,100610.0,100600.0,8e-05]
[1762288786747,1.30349403,100610.0,100600.0,8e-05]
[1762288787151,0.2187214,100630.0,100600.0,8e-05]
[1762288787152,0.30108141,100630.0,100600.0,8e-05]
[1762288787336,1.17592428,100620.0,100610.0,0.08955669]
[1762288787540,1.12941664,100620.0,100610.0,0.08955669]
[1762288788152,1.12964431,100620.0,100610.0,0.11355669]
[1762288788385,1.12964431,100620.0,100610.0,0.31234408]
[1762288788386,0.00022767,100620.0,100610.0,0.31234408]
[1762288788556,0.63738431,100620.0,100610.0,0.31234408]
[1762288788987,0.63738431,100620.0,100610.0,0.11355669]
[1762288789589,0.63738431,100620.0,100610.0,0.08955669]
[1762288789789,0.63738431,100620.0,100610.0,0.11355669]
[1762288789992,0.63738431,100620.0,100610.0,0.11555669]
[1762288790201,0.63738431,100620.0,100610.0,0.11559669]
[1762288790402,0.00022767,100620.0,100610.0,0.28838408]
[1762288790607,0.00022767,100620.0,100610.0,0.44199408]
[1762288791026,0.00022767,100620.0,100610.0,0.15067669]
[1762288791232,0.00022767,100620.0,100610.0,0.37346408]
[1762288791908,0.00022767,100620.0,100610.0,0.34946408]
[1762288792150,0.63738431,100620.0,100610.0,0.08959669]
[1762288792361,1.32841195,100620.0,100610.0,4e-05]
[1762288792917,0.34022767,100620.0,100610.0,0.09159669]
[1762288793129,0.34022767,100620.0,100610.0,0.11359669]
[1762288793340,0.97738431,100620.0,100610.0,0.11359669]
[1762288793541,0.97738431,100620.0,100610.0,0.11459669]
[1762288793777,0.63738431,100620.0,100610.0,0.15067669]
[1762288793909,0.63738431,100620.0,100610.0,0.24320669]
[1762288794330,0.00022767,100620.0,100610.0,0.41799408]
[1762288794578,0.63738431,100620.0,100610.0,0.24320669]
[1762288794795,0.63738431,100620.0,100610.0,0.15067669]
[1762288794993,0.63738431,100620.0,100610.0,0.08959669]
[1762288795228,1.23605195,100620.0,100610.0,4e-05]
[1762288795447,1.32841195,100620.0,100610.0,4e-05]
[1762288796360,1.17615195,100620.0,100610.0,4e-05]
[1762288796794,0.97738431,100620.0,100610.0,0.02404]
[1762288797007,0.97738431,100620.0,100610.0,0.11359669]
[1762288797237,1.32841195,100620.0,100610.0,4e-05]
[1762288797896,1.23605195,100620.0,100610.0,4e-05]
[1762288798612,1.17615195,100620.0,100610.0,4e-05]
[1762288799708,1.32841195,100620.0,100610.0,4e-05]
[1762288800549,1.5533589,100620.0,100610.0,4e-05]
[1762288800748,1.5533589,100620.0,100570.0,0.08697]
[1762288800749,1.06095027,100580.0,100570.0,0.08697]
[1762288800948,1.06095027,100580.0,100570.0,0.04119514]
[1762288801151,1.58304027,100580.0,100570.0,0.00014514]
[1762288801665,0.57504874,100570.0,100560.0,4e-05]
[1762288801876,0.73730873,100570.0,100560.0,4e-05]
[1762288802080,1.46087005,100570.0,100560.0,4e-05]
[1762288802232,1.40097005,100570.0,100560.0,4e-05]
[1762288802440,1.20210359,100570.0,100560.0,4e-05]
[1762288802642,1.20210359,100570.0,100560.0,0.12979]
[1762288802846,0.34,100570.0,100560.0,0.12979]
[1762288803208,0.86210359,100590.0,100570.0,0.22286449]
[1762288803388,1.06091407,100600.0,100580.0,0.09969]
[1762288803599,0.86224862,100600.0,100580.0,0.16836]
[1762288803747,0.00014503,100600.0,100590.0,0.03407]
[1762288803953,0.00014503,100600.0,100590.0,0.19229669]
[1762288804691,0.19880715,100600.0,100590.0,0.12362669]
[1762288804896,0.25431747,100610.0,100590.0,0.06108]
[1762288805222,1.06091074,100600.0,100590.0,0.08955669]
[1762288805446,0.34,100580.0,100570.0,0.12827669]
[1762288805651,0.34,100580.0,100570.0,0.19709172]
[1762288805652,1.40095027,100580.0,100570.0,0.19709172]
[1762288805859,1.40095027,100580.0,100570.0,0.12842172]
[1762288806070,1.40095027,100580.0,100570.0,0.25817172]
[1762288806071,0.34,100580.0,100570.0,0.25817172]
[1762288806299,1.20210359,100580.0,100570.0,0.25817172]
[1762288806507,0.34,100580.0,100570.0,0.18950172]
[1762288806720,0.34,100580.0,100570.0,0.45703818]
[1762288806721,1.20210359,100580.0,100570.0,0.45703818]
[1762288806923,0.86210359,100590.0,100570.0,0.45703818]
[1762288807128,0.86210359,100590.0,100580.0,0.29151668]
[1762288807338,0.20893371,100620.0,100590.0,0.25990692]
[1762288807547,0.86210359,100610.0,100600.0,0.12145669]
[1762288807758,0.86210359,100610.0,100590.0,0.06867]
[1762288807975,0.86233126,100620.0,100600.0,0.26747624]
[1762288808176,0.00022767,100620.0,100610.0,0.33749408]
[1762288808358,0.00022767,100620.0,100610.0,0.20737669]
[1762288808559,0.00022767,100620.0,100610.0,0.43016408]
[1762288808760,0.00022767,100620.0,100610.0,0.40616408]
[1762288809118,0.00022767,100620.0,100610.0,0.20737669]
[1762288809319,0.86233126,100620.0,100610.0,0.20737669]
[1762288809582,0.86233126,100620.0,100610.0,0.43016408]
[1762288809787,0.00022767,100620.0,100610.0,0.40616408]
[1762288809965,0.00022767,100620.0,100610.0,0.43016408]
[1762288810147,0.00022767,100620.0,100610.0,0.23437669]
[1762288810352,0.00022767,100620.0,100610.0,0.40616408]
[1762288810702,0.00022767,100620.0,100610.0,0.47608408]
[1762288810911,0.00022767,100620.0,100610.0,0.47908408]
[1762288811278,0.00022767,100620.0,100610.0,0.45508408]
[1762288811479,0.00022767,100620.0,100610.0,0.47908408]
[1762288811678,0.00022767,100620.0,100610.0,0.45508408]
[1762288811882,5.02e-06,100640.0,100630.0,0.19874788]
[1762288812079,5.02e-06,100640.0,100630.0,0.34808457]
[1762288812080,0.00015013,100640.0,100630.0,0.34808457]
[1762288812283,0.00042848,100640.0,100630.0,0.43419457]
[1762288812488,0.00042848,100640.0,100630.0,0.41019457]
[1762288812688,0.00042848,100640.0,100630.0,0.43419457]
[1762288812953,0.0002,100660.0,100650.0,0.22270839]
[1762288813127,0.0002,100660.0,100650.0,0.33326839]
[1762288813362,0.0002,100660.0,100650.0,0.42282508]
[1762288813562,0.00070592,100660.0,100650.0,0.20011669]
[1762288813980,0.86280951,100660.0,100650.0,0.42282508]
[1762288814136,0.86280951,100660.0,100650.0,0.20011669]
[1762288814560,0.34311564,100710.0,100670.0,0.19866231]
[1762288814925,1.06071531,100700.0,100680.0,0.08955669]
[1762288815068,0.86210359,100690.0,100680.0,0.15166669]
[1762288815247,1.40073304,100690.0,100680.0,0.15166669]
[1762288815450,1.40073304,100690.0,100680.0,0.14933669]
[1762288815659,0.20927946,100710.0,100680.0,0.21144669]
[1762288815874,0.19860973,100700.0,100680.0,0.06211]
[1762288816067,0.86210359,100690.0,100680.0,0.06211]
[1762288816269,0.19862945,100690.0,100670.0,0.13547669]
[1762288816476,1.40073304,100690.0,100680.0,0.05978]
[1762288816671,0.00068382,100710.0,100690.0,0.22262935]
[1762288816875,0.00068382,100710.0,100700.0,0.17316669]
[1762288817106,0.00068382,100710.0,100700.0,0.14916669]
[1762288817301,0.00068382,100710.0,100700.0,0.21127669]
[1762288817710,0.00068382,100710.0,100700.0,0.43388642]
[1762288817965,0.00068382,100710.0,100700.0,0.21127669]
[1762288818175,0.00068382,100710.0,100700.0,0.14916669]
[1762288818350,0.86278741,100710.0,100700.0,0.21127669]
[1762288818549,1.06137742,100710.0,100700.0,0.14916669]
[1762288818754,1.06137742,100710.0,100700.0,0.15016669]
[1762288818953,0.19861518,100700.0,100680.0,0.06211]
[1762288819255,0.19860973,100700.0,100690.0,0.08955669]
[1762288819455,0.54920333,100710.0,100690.0,0.17333669]
[1762288819690,0.19860973,100700.0,100690.0,0.14933669]
[1762288819838,0.19860973,100700.0,100690.0,0.08955669]
[1762288820237,0.00050576,100680.0,100670.0,0.3341456]
[1762288820622,0.86210359,100700.0,100690.0,0.22262945]
[1762288820848,0.86210359,100700.0,100690.0,0.14933669]
[1762288821063,1.40071332,100700.0,100690.0,0.08955669]
[1762288821291,0.19862965,100690.0,100670.0,0.19758669]
[1762288821514,0.19862965,100690.0,100670.0,0.22158669]
[1762288821515,0.86210359,100680.0,100670.0,0.22158669]
[1762288821996,0.86210359,100680.0,100670.0,0.04592]
[1762288822198,0.34,100690.0,100670.0,0.25736669]
[1762288822402,0.86210359,100680.0,100670.0,0.28136669]
[1762288822608,0.86210359,100680.0,100670.0,0.22158669]
[1762288822809,0.86186885,100680.0,100670.0,0.25836669]
[1762288822946,0.19862969,100690.0,100670.0,0.25836669]
[1762288822947,0.54920931,100710.0,100680.0,0.024]
[1762288823150,1.20210359,100690.0,100680.0,0.30262918]
[1762288823385,0.00068382,100710.0,100680.0,0.26075918]
[1762288823555,0.0002,100750.0,100700.0,0.22260973]
[1762288823839,0.00034516,100750.0,100730.0,0.34]
[1762288824064,0.00034516,100750.0,100720.0,0.03618228]
[1762288824065,0.86210359,100740.0,100720.0,0.03618228]
[1762288824287,0.19885891,100750.0,100730.0,0.08955669]
[1762288824509,0.20845741,100740.0,100710.0,0.47543669]
[1762288824807,0.86210359,100730.0,100720.0,0.024]
[1762288825032,0.86210359,100730.0,100710.0,0.6740267]
[1762288825271,0.00992654,100740.0,100710.0,0.6740267]
[1762288825272,0.20845817,100740.0,100710.0,0.6740267]
[1762288825512,0.00034516,100750.0,100720.0,0.19856961]
[1762288825751,0.00034516,100750.0,100730.0,0.08955669]
[1762288826003,0.86210359,100740.0,100710.0,0.13543669]
[1762288826214,0.86210359,100740.0,100720.0,0.19857029]
[1762288826453,0.86210359,100740.0,100720.0,0.2084988]
[1762288826712,0.86244875,100750.0,100730.0,0.28810727]
[1762288826934,0.20845198,100790.0,100750.0,0.19850928]
[1762288827154,0.86210359,100780.0,100760.0,0.19849122]
[1762288827359,0.00202128,100760.0,100750.0,0.08955669]
[1762288827804,0.00202128,100760.0,100750.0,0.28806785]
[1762288828041,0.00202128,100760.0,100750.0,0.08955669]
[1762288828258,0.00202128,100760.0,100750.0,0.28806785]
[1762288828511,0.19857742,100790.0,100760.0,0.19849049]
[1762288828512,0.00014497,100790.0,100760.0,0.19849049]
[1762288828714,0.00014497,100790.0,100770.0,0.08955669]
[1762288829148,0.00014497,100790.0,100770.0,0.28802727]
[1762288829355,0.00014497,100790.0,100770.0,0.33386727]
[1762288829563,0.00014497,100790.0,100770.0,0.13539669]
[1762288829807,0.19845207,100780.0,100770.0,0.13539669]
[1762288830245,0.34014497,100790.0,100770.0,0.13539669]
[1762288830475,0.00014497,100790.0,100770.0,0.13539669]
[1762288830701,0.19857871,100790.0,100770.0,0.13539669]
[1762288830919,1.4006823,100790.0,100770.0,0.15939669]
[1762288831154,1.4006823,100790.0,100770.0,0.13539669]
[1762288831371,1.06055566,100780.0,100770.0,0.04584]
[1762288831581,1.20224856,100790.0,100770.0,0.13539669]
[1762288831799,0.34014497,100790.0,100770.0,0.33386637]
[1762288832012,0.53857962,100790.0,100770.0,0.13539669]
[1762288832225,1.06055566,100780.0,100770.0,0.13539669]
[1762288832432,1.40055566,100780.0,100770.0,0.04584]
[1762288832636,1.40055566,100780.0,100770.0,0.2]
[1762288833275,1.49121566,100780.0,100770.0,0.2]
[1762288833912,4.53739793,100780.0,100770.0,0.10797]
[1762288834119,4.53739793,100780.0,100720.0,0.03804]
[1762288834120,0.34992654,100740.0,100720.0,0.03804]
[1762288834330,0.19855058,100730.0,100720.0,0.03804]
[1762288834533,0.19855058,100730.0,100710.0,0.16563669]
[1762288834534,0.86210359,100730.0,100710.0,0.16563669]
[1762288834733,0.53855308,100730.0,100710.0,0.16563669]
[1762288834886,1.40065667,100730.0,100710.0,0.16563669]
[1762288835087,1.40065667,100730.0,100700.0,0.08388]
[1762288835088,1.06067388,100720.0,100700.0,0.08388]
[1762288835295,0.19857029,100720.0,100710.0,0.08955669]
[1762288835496,0.86210359,100720.0,100710.0,0.08955669]
[1762288835882,0.34,100730.0,100710.0,0.36422259]
[1762288836096,1.21203013,100740.0,100710.0,0.08955669]
[1762288836297,1.41056226,100740.0,100710.0,0.16563669]
[1762288836475,1.41056226,100740.0,100720.0,0.07608]
[1762288836679,0.34,100740.0,100730.0,0.08955669]
[1762288837256,0.34,100740.0,100730.0,0.16563669]
[1762288837464,1.07054065,100750.0,100730.0,0.16563669]
[1762288837673,0.19853087,100740.0,100730.0,0.08955669]
[1762288837884,0.19953087,100740.0,100730.0,0.08955669]
[1762288838083,0.001,100740.0,100730.0,0.16563669]
[1762288838289,1.06061524,100750.0,100730.0,0.16563669]
[1762288838413,1.06061524,100750.0,100730.0,0.38818568]
[1762288838414,1.20210359,100750.0,100730.0,0.38818568]
[1762288838614,1.40061535,100750.0,100730.0,0.18963669]
[1762288838848,1.40061535,100750.0,100730.0,0.16563669]
[1762288839057,1.06063446,100740.0,100730.0,0.08955669]
[1762288839272,0.19857029,100720.0,100710.0,0.08955669]
[1762288839479,0.19855058,100730.0,100710.0,0.08955669]
[1762288839677,1.06065417,100730.0,100710.0,0.08955669]
[1762288839880,0.19857029,100720.0,100710.0,0.08955669]
[1762288840346,1.06065417,100730.0,100710.0,0.08955669]
[1762288840525,0.34,100730.0,100710.0,0.08955669]
[1762288840734,1.4006562,100730.0,100710.0,0.16515669]
[1762288840932,1.4006562,100730.0,100710.0,0.19215669]
[1762288841169,0.34,100730.0,100710.0,0.36674402]
[1762288841311,0.54843731,100750.0,100720.0,0.0756]
[1762288841513,0.34,100740.0,100730.0,0.11355669]
[1762288842107,0.19855058,100730.0,100720.0,0.0756]
[1762288842376,0.34,100740.0,100720.0,0.0756]
[1762288842527,0.34,100740.0,100730.0,0.08955669]
[1762288842731,1.40063446,100740.0,100730.0,0.08955669]
[1762288842934,1.20210359,100740.0,100730.0,0.08955669]
[1762288843140,0.34,100740.0,100730.0,0.16515669]
[1762288843517,0.86210359,100750.0,100730.0,0.38770727]
[1762288843753,1.11454484,100760.0,100730.0,0.36370727]
[1762288843998,1.11454484,100760.0,100750.0,0.03756]
[1762288843999,0.0002272,100760.0,100750.0,0.03756]
[1762288844172,0.53871866,100760.0,100750.0,0.12711669]
[1762288844586,0.53851953,100750.0,100730.0,0.13639669]
[1762288844830,1.40062312,100750.0,100730.0,0.23499669]
[1762288845053,0.19853087,100740.0,100730.0,0.13539669]
[1762288845255,0.19853087,100740.0,100730.0,0.13554185]
[1762288845463,1.06063446,100740.0,100730.0,0.04598516]
[1762288845658,1.40063446,100740.0,100730.0,0.04598516]
[1762288845864,1.40063446,100740.0,100730.0,0.00014516]
[1762288846199,1.06063446,100740.0,100730.0,0.00014516]
[1762288846444,0.86210359,100740.0,100730.0,0.00014516]
[1762288846865,0.19851953,100750.0,100730.0,0.24564185]
[1762288847064,1.06062312,100750.0,100730.0,0.24564185]
[1762288847263,0.19853087,100740.0,100730.0,0.22164185]
[1762288847775,1.06062312,100750.0,100730.0,0.22164185]
[1762288847992,0.86210359,100750.0,100740.0,0.04152]
[1762288848312,1.40061475,100750.0,100740.0,0.04152]
[1762288848444,1.40061475,100750.0,100740.0,0.11712]
[1762288848656,0.0002272,100760.0,100740.0,0.14112]
[1762288848882,0.25159519,100760.0,100730.0,0.16538185]
[1762288849054,0.06015,100740.0,100730.0,0.00022516]
[1762288849261,0.6224158,100750.0,100730.0,0.08978185]
[1762288849262,1.14451939,100750.0,100730.0,0.08978185]
[1762288849460,0.94600359,100750.0,100730.0,0.08982185]
[1762288849859,0.34,100750.0,100730.0,0.28837097]
[1762288850066,1.44377228,100760.0,100730.0,0.37393849]
[1762288850290,1.20233079,100760.0,100750.0,0.08955669]
[1762288850440,0.3831772,100760.0,100750.0,0.08955669]
[1762288850641,1.24528079,100760.0,100730.0,0.41977849]
[1762288850842,1.50392231,100760.0,100730.0,0.41977849]
[1762288851059,1.58782231,100760.0,100730.0,0.41977849]
[1762288851296,0.0002272,100760.0,100750.0,0.40596785]
[1762288851512,0.0002272,100760.0,100750.0,0.4245149]
[1762288851718,0.0002272,100760.0,100750.0,0.5001149]
[1762288852136,0.0002272,100760.0,100750.0,0.4761149]
[1762288852344,0.0002272,100760.0,100750.0,0.5001149]
[1762288852772,0.0002272,100760.0,100750.0,0.53629718]
[1762288853194,0.0002272,100760.0,100750.0,0.51229718]
[1762288853391,0.0002272,100760.0,100750.0,0.53629718]
[1762288853845,0.2882816,100810.0,100800.0,0.024]
[1762288853846,0.0002,100810.0,100800.0,0.024]
[1762288854044,0.0002,100810.0,100800.0,0.34892974]
[1762288854198,0.0002,100810.0,100800.0,0.07488705]
[1762288854412,0.00123494,100810.0,100800.0,0.28099788]
[1762288854667,0.00123494,100810.0,100800.0,0.08258519]
[1762288854829,0.00123494,100810.0,100800.0,0.02624519]
[1762288855022,0.00137994,100810.0,100800.0,0.02624519]
[1762288855248,0.00137994,100810.0,100800.0,0.11580188]
[1762288855450,0.00137994,100810.0,100800.0,0.17214188]
[1762288855652,0.00137994,100810.0,100800.0,0.11680188]
[1762288856336,0.19977295,100810.0,100800.0,0.11680188]
[1762288856541,0.19977295,100810.0,100800.0,0.01954705]
[1762288856542,1.20592654,100810.0,100800.0,0.01954705]
[1762288856766,1.20592654,100810.0,100800.0,0.01958705]
[1762288857184,0.00137994,100810.0,100800.0,0.01958705]
[1762288857445,0.00137994,100810.0,100800.0,0.24969185]
[1762288857648,0.00137994,100810.0,100800.0,0.08365916]
[1762288857860,0.00137994,100810.0,100800.0,0.28207185]
[1762288858061,0.00137994,100810.0,100800.0,0.38170185]
[1762288858475,0.00137994,100810.0,100800.0,0.38070185]
[1762288858914,0.00137994,100810.0,100800.0,0.08269916]
[1762288859118,0.00137994,100810.0,100800.0,0.30511185]
[1762288859312,0.00137994,100810.0,100800.0,0.35674185]
[1762288859557,0.00137994,100810.0,100800.0,0.38574185]
[1762288859761,0.00137994,100810.0,100800.0,0.44629854]
[1762288859967,0.00137994,100810.0,100800.0,0.47029854]
[1762288860195,0.00137994,100810.0,100800.0,0.47129854]
[1762288860419,0.00137994,100810.0,100800.0,0.31532854]
[1762288860795,0.00137994,100810.0,100800.0,0.44729122]
[1762288860994,0.00137994,100810.0,100800.0,0.47129122]
[1762288861225,0.025,100820.0,100810.0,0.19839301]
[1762288861458,0.025,100830.0,100820.0,0.22237333]
[1762288861659,0.04295,100870.0,100840.0,0.20823279]
[1762288861809,1.18771675,100870.0,100850.0,0.08955669]
[1762288862013,0.32561281,100870.0,100850.0,0.08955669]
[1762288862214,0.00048334,100870.0,100850.0,0.38198743]
[1762288862417,0.19875859,100870.0,100850.0,0.08955669]
[1762288862639,0.8320364,100870.0,100850.0,0.08955669]
[1762288862854,0.34234466,100860.0,100850.0,0.08955669]
[1762288863055,0.14405,100860.0,100820.0,0.29784788]
[1762288863276,0.20867234,100870.0,100820.0,0.29784788]
[1762288863277,0.00048334,100870.0,100850.0,0.28786982]
[1762288863478,0.97376115,100870.0,100850.0,0.10803302]
[1762288863661,0.97376115,100870.0,100850.0,0.10807302]
[1762288863662,1.17203649,100870.0,100850.0,0.10807302]
[1762288864002,1.17203649,100870.0,100860.0,0.33026466]
[1762288864003,0.00048334,100870.0,100860.0,0.33026466]
[1762288864201,0.00048334,100870.0,100860.0,0.37274099]
[1762288864369,0.00048334,100870.0,100860.0,0.90720247]
[1762288864694,0.00048334,100870.0,100860.0,0.01843042]
[1762288865126,0.19875834,100870.0,100860.0,0.01843042]
[1762288865351,0.91593615,100870.0,100860.0,0.01843042]
[1762288865559,0.91593615,100870.0,100860.0,0.01943042]
[1762288865776,1.25593615,100870.0,100850.0,8e-05]
[1762288865949,1.25593615,100870.0,100850.0,0.0185143]
[1762288865950,0.28219466,100860.0,100850.0,0.0185143]
[1762288866177,0.91547247,100860.0,100850.0,0.0185143]
[1762288866380,0.0839,100860.0,100850.0,0.0185143]
[1762288866637,0.00048334,100870.0,100850.0,0.24082828]
[1762288866857,0.00048334,100870.0,100860.0,0.08955669]
[1762288867064,0.00048334,100870.0,100860.0,0.0184743]
[1762288867065,0.19875834,100870.0,100860.0,0.0184743]
[1762288867219,0.91744946,100870.0,100860.0,4e-05]
[1762288867427,0.83354946,100870.0,100860.0,4e-05]
[1762288867809,0.20027165,100870.0,100860.0,4e-05]
[1762288868065,0.00199665,100870.0,100860.0,0.0184609]
[1762288868263,0.00199665,100870.0,100860.0,0.43828048]
[1762288868596,0.00199665,100870.0,100860.0,0.46228048]
[1762288868912,0.827759,100900.0,100870.0,0.198275]
[1762288869120,0.00014496,100900.0,100890.0,0.08955669]
[1762288869452,0.00014496,100900.0,100890.0,0.33782465]
[1762288869659,0.00014496,100900.0,100890.0,0.41345465]
[1762288869886,0.00090111,100900.0,100890.0,1.02273246]
[1762288870096,0.04,100910.0,100900.0,0.19821605]
[1762288870281,0.04,100910.0,100900.0,0.95667677]
[1762288870467,0.04,100910.0,100900.0,0.95166612]
[1762288870877,0.025,100920.0,100910.0,0.32393538]
[1762288871134,0.025,100920.0,100910.0,0.85518904]
[1762288871308,0.025,100920.0,100910.0,0.20972895]
[1762288871526,0.025,100920.0,100910.0,0.40792536]
[1762288871725,0.025,100920.0,100910.0,1.01720317]
[1762288871971,0.025,100920.0,100910.0,0.38392536]
[1762288872163,0.025,100920.0,100910.0,0.18572895]
[1762288872370,0.22317677,100920.0,100910.0,0.11858895]
[1762288872597,0.94385458,100920.0,100910.0,0.11097582]
[1762288872788,0.31057677,100920.0,100910.0,0.02141913]
[1762288872998,0.025,100920.0,100910.0,0.02141913]
[1762288873203,0.025,100920.0,100910.0,0.21961554]
[1762288873403,0.025,100920.0,100910.0,0.37931223]
[1762288873663,0.025,100920.0,100910.0,0.44710764]
[1762288873857,0.025,100920.0,100910.0,0.42010764]
[1762288874079,0.025,100920.0,100910.0,0.44410764]
[1762288874251,0.025,100920.0,100910.0,1.07738545]
[1762288874452,0.0121,100940.0,100930.0,0.08955669]
[1762288874605,0.01224483,100940.0,100930.0,0.33871295]
[1762288874801,0.01224483,100940.0,100930.0,0.21830895]
[1762288874997,0.01224483,100940.0,100930.0,0.21069582]
[1762288875198,0.01224483,100940.0,100930.0,1.04213076]
[1762288875435,0.01224483,100940.0,100930.0,1.07374389]
[1762288875653,0.01224483,100940.0,100930.0,0.24330895]
[1762288875857,0.01224483,100940.0,100930.0,1.11092617]
[1762288876467,0.01224483,100940.0,100930.0,1.08692617]
[1762288876668,0.01224483,100940.0,100930.0,1.08592617]
[1762288876865,0.01325255,100940.0,100930.0,1.10992617]
[1762288877068,0.01325255,100940.0,100930.0,0.22130895]
[1762288877271,0.01325255,100940.0,100930.0,0.19527669]
[1762288877472,0.01325255,100940.0,100930.0,0.12513669]
[1762288877672,0.21139005,100940.0,100930.0,0.12513669]
[1762288877831,0.84466786,100940.0,100930.0,0.09255669]
[1762288878046,0.22311808,100950.0,100930.0,0.19527669]
[1762288878047,0.19831808,100950.0,100930.0,0.19527669]
[1762288878279,0.5819206,100970.0,100940.0,0.07014]
[1762288878280,0.20805453,100970.0,100940.0,0.07014]
[1762288878459,0.20809632,100980.0,100940.0,0.27818338]
[1762288878708,0.84185699,100980.0,100950.0,0.26825714]
[1762288879053,0.00048286,100980.0,100970.0,0.08955669]
[1762288879264,0.00048286,100980.0,100970.0,0.15969669]
[1762288879494,0.00048286,100980.0,100970.0,0.08955669]
[1762288879959,0.19954898,100980.0,100970.0,0.08955669]
[1762288880178,0.00148996,100980.0,100970.0,0.08955669]
[1762288880424,0.19954898,100980.0,100970.0,0.08955669]
[1762288880638,1.17282679,100980.0,100970.0,0.08955669]
[1762288881088,0.00148996,100980.0,100970.0,0.35777532]
[1762288881310,0.00148996,100980.0,100970.0,0.08955669]
[1762288881526,0.00148996,100980.0,100970.0,0.38177532]
[1762288881754,0.00148996,100980.0,100970.0,1.00896278]
[1762288881990,0.00148996,100980.0,100970.0,1.12236692]
[1762288882213,0.00148996,100980.0,100970.0,0.42148497]
[1762288882420,0.00148996,100980.0,100970.0,0.24740634]
[1762288882630,0.00148996,100980.0,100970.0,0.42148497]
[1762288882834,0.00148996,100980.0,100970.0,0.44548497]
[1762288883300,0.00148996,100980.0,100970.0,0.24740634]
[1762288883529,0.19954898,100980.0,100970.0,0.08955669]
[1762288883750,0.19954898,100980.0,100970.0,0.001]
[1762288883996,0.00148996,100980.0,100970.0,0.024]
[1762288884222,0.19809825,100960.0,100950.0,0.10746295]
[1762288884446,0.19809825,100960.0,100950.0,0.08955669]
[1762288884447,0.83137606,100960.0,100950.0,0.08955669]
[1762288884688,0.54844483,100980.0,100950.0,0.15969669]
[1762288884930,0.00048286,100980.0,100970.0,0.08955669]
[1762288885377,0.19854188,100980.0,100970.0,0.08955669]
[1762288885568,0.00048286,100980.0,100970.0,0.08955669]
[1762288886054,0.00048286,100980.0,100970.0,0.11355669]
[1762288886299,0.19854188,100980.0,100970.0,0.08955669]